bitfinex-derivatives/quotes_SOLF0:USTF0_20251208
["timestamp","ask_amount","ask_price","bid_price","bid_amount"]
[1765156884308,0.05021607,132.3,132.29,5.13278377]
[1765156885610,0.05021607,132.3,132.28,3.14162543]
[1765156889611,0.05021607,132.3,132.28,0.05162543]
[1765156889612,3.24021607,132.3,132.28,0.05162543]
[1765156891008,3.24021607,132.3,132.25,11.93728377]
[1765156891009,6.8032,132.28,132.25,3.09]
[1765156891309,3.24021607,132.3,132.25,3.09]
[1765156892212,3.24021607,132.3,132.26,3.14413038]
[1765156892611,10.04271607,132.3,132.26,3.14413038]
[1765156892814,3.24021607,132.3,132.27,3.09]
[1765156893015,3.24021607,132.3,132.21,105.8807]
[1765156893016,5.23278377,132.28,132.2,3.09]
[1765156893222,2.04278377,132.26,132.2,3.09]
[1765156893405,5.23278377,132.26,132.21,3.09]
[1765156894019,5.23278377,132.26,132.23,3.09]
[1765156894318,0.05658802,132.25,132.23,3.09]
[1765156895005,0.05658802,132.25,132.24,5.13278377]
[1765156902821,3.24658802,132.25,132.24,2.04278377]
[1765156903021,3.19,132.23,132.17,5.13278377]
[1765156903322,5.23278377,132.23,132.17,3.09]
[1765156903523,3.19,132.22,132.19,3.09]
[1765156904126,3.24605661,132.22,132.19,3.14064223]
[1765156905926,3.24605661,132.22,132.19,0.05064223]
[1765156906333,3.24605661,132.22,132.19,3.14064223]
[1765156907536,0.05605661,132.22,132.19,5.183426]
[1765156908037,3.25605661,132.22,132.19,3.46064223]
[1765156908428,0.05605661,132.22,132.19,3.46064223]
[1765156910531,3.25605661,132.22,132.19,3.46064223]
[1765156910832,3.25605661,132.22,132.19,0.05064223]
[1765156911620,3.25605661,132.22,132.19,3.46064223]
[1765156914421,3.25605661,132.22,132.19,0.05064223]
[1765156914932,3.2,132.21,132.19,0.05064223]
[1765156915738,10.007,132.21,132.19,0.05064223]
[1765156915933,3.2,132.2,132.19,0.05064223]
[1765156916532,3.2,132.2,132.14,6.8101]
[1765156916533,3.2,132.19,132.15,3.41]
[1765156916737,3.2,132.19,132.13,68.14215119]
[1765156917037,3.2,132.19,132.13,71.26215119]
[1765156917238,3.18,132.18,132.14,3.12]
[1765156917639,0.04817095,132.17,132.15,3.17408719]
[1765156919638,0.04817095,132.17,132.16,3.12]
[1765156924650,6.8065,132.22,132.16,3.12]
[1765156924852,6.8065,132.22,132.18,3.12]
[1765156925157,3.18,132.21,132.15,3.12]
[1765156925457,9.9869,132.21,132.15,3.12]
[1765156925658,0.04771214,132.19,132.17,3.17136285]
[1765156925858,0.04771214,132.19,132.17,9.97996285]
[1765156926059,0.04771214,132.19,132.18,3.12]
[1765156926354,6.8051,132.25,132.19,3.12]
[1765156926860,3.18,132.25,132.19,3.12]
[1765156927356,0.05434083,132.23,132.21,3.17474446]
[1765156927752,0.05434083,132.23,132.21,9.98134446]
[1765156927947,0.05434083,132.23,132.22,3.12]
[1765156928347,3.18,132.3,132.23,3.12]
[1765156928552,9.9825,132.3,132.23,3.12]
[1765156929145,9.9825,132.3,132.24,6.32215119]
[1765156929350,0.05333771,132.28,132.26,0.05549243]
[1765156929546,0.05333771,132.28,132.26,3.17549243]
[1765156931064,0.05333771,132.28,132.26,6.37764362]
[1765156931362,0.05333771,132.28,132.27,3.12]
[1765156931864,0.05333771,132.28,132.26,6.37764362]
[1765156933354,0.05333771,132.28,132.27,3.12]
[1765156940359,3.3,132.34,132.27,3.12]
[1765156940660,3.3,132.35,132.31,3.15]
[1765156941365,0.05551253,132.34,132.32,0.05193919]
[1765156941864,0.05551253,132.34,132.32,3.20193919]
[1765156943067,0.05551253,132.34,132.32,6.40409038]
[1765156943261,0.05551253,132.34,132.33,3.15]
[1765156944769,0.05551253,132.34,132.32,3.20193919]
[1765156949770,3.35551253,132.34,132.32,0.05193919]
[1765156951666,0.05551253,132.34,132.32,3.20193919]
[1765156951867,0.05551253,132.34,132.33,3.15]
[1765156952571,3.3,132.38,132.34,3.15]
[1765156952967,3.3,132.36,132.32,6.35215119]
[1765156953273,3.3,132.36,132.32,3.15]
[1765156953468,3.3,132.36,132.33,0.05092101]
[1765156953469,3.34836054,132.35,132.33,0.05092101]
[1765156953663,3.34836054,132.35,132.33,3.20092101]
[1765156954064,0.04836054,132.35,132.33,3.20092101]
[1765156954568,3.3,132.4,132.35,3.15]
[1765156954874,3.3,132.41,132.37,3.15]
[1765156955173,3.3,132.4,132.37,3.15]
[1765156955775,3.3,132.4,132.37,3.19859567]
[1765156962483,10.0957,132.43,132.38,3.15]
[1765156962783,10.0957,132.43,132.4,3.15]
[1765156962980,3.3,132.42,132.4,3.15]
[1765156963480,6.7957,132.43,132.4,3.15]
[1765156963784,10.0957,132.43,132.4,3.15]
[1765156963980,3.3,132.42,132.4,3.15]
[1765156964180,3.3,132.44,132.4,3.15]
[1765156964377,3.3,132.44,132.41,0.05256936]
[1765156966982,3.3,132.44,132.41,3.20256936]
[1765156967175,3.3,132.46,132.42,3.15]
[1765156969186,10.0937,132.47,132.42,3.15]
[1765156969387,3.3,132.46,132.42,3.15]
[1765156969588,10.0937,132.47,132.42,3.15]
[1765156970082,3.3,132.46,132.42,3.15]
[1765156970989,74.8727,132.49,132.43,3.13]
[1765156971291,3.3,132.48,132.45,0.05146042]
[1765156971982,10.093,132.48,132.45,0.05146042]
[1765156972188,3.3,132.47,132.45,0.05146042]
[1765156975290,3.3,132.47,132.45,3.18146042]
[1765156975994,3.3,132.47,132.45,0.05146042]
[1765156976398,3.3,132.49,132.45,3.18146042]
[1765156976586,6.7921,132.5,132.46,3.13]
[1765156976793,10.0921,132.5,132.47,5.17029343]
[1765156976993,10.0411,132.52,132.49,5.15029343]
[1765156977193,10.0411,132.52,132.49,5.20737244]
[1765156978496,3.25,132.52,132.49,5.20737244]
[1765156979984,6.7905,132.53,132.5,3.11]
[1765156980187,3.25,132.55,132.51,2.04029343]
[1765156980388,3.25,132.55,132.52,3.16727823]
[1765156980801,3.25,132.54,132.52,0.05727823]
[1765156981202,3.25,132.55,132.52,3.16727823]
[1765156981500,3.25,132.55,132.52,0.05727823]
[1765156982410,3.25,132.53,132.52,0.05727823]
[1765156983599,3.25,132.49,132.46,2.04029343]
[1765156983795,3.25,132.49,132.46,5.15029343]
[1765156984012,3.25,132.52,132.48,2.04029343]
[1765156984512,3.30585248,132.51,132.49,0.05165511]
[1765156985004,0.05585248,132.51,132.5,5.15029343]
[1765156987410,3.25,132.54,132.51,3.11]
[1765156987712,3.25,132.54,132.52,2.04029343]
[1765156988298,3.25,132.54,132.52,2.09787144]
[1765156989715,3.25,132.54,132.52,0.05757801]
[1765156990016,10.0401,132.54,132.52,0.05757801]
[1765156990310,3.25,132.53,132.52,0.05757801]
[1765156990813,5.29029343,132.53,132.52,0.05757801]
[1765156993221,3.25,132.51,132.46,11.94409343]
[1765156993612,3.25,132.51,132.47,3.11]
[1765156994311,3.29904867,132.5,132.48,0.05433449]
[1765156995117,3.29904867,132.5,132.48,3.16433449]
[1765156995415,0.04904867,132.5,132.49,3.11]
[1765156997719,3.42904867,132.5,132.48,0.05433449]
[1765156998410,5.42029343,132.49,132.48,0.05433449]
[1765156999021,3.38,132.49,132.48,0.05433449]
[1765157000926,6.84104867,132.5,132.48,0.05433449]
[1765157001115,0.04904867,132.5,132.49,3.17]
[1765157001422,0.04904867,132.5,132.48,5.26462792]
[1765157002424,3.42904867,132.5,132.48,0.05433449]
[1765157003324,10.22104867,132.5,132.48,0.05433449]
[1765157004024,0.04904867,132.5,132.48,3.22433449]
[1765157004923,0.04904867,132.5,132.49,3.17]
[1765157011636,0.04904867,132.5,132.48,5.26462792]
[1765157011839,3.42904867,132.5,132.48,5.26462792]
[1765157012139,3.42904867,132.5,132.48,2.09462792]
[1765157012335,3.42904867,132.5,132.48,5.26462792]
[1765157012538,0.04904867,132.5,132.48,5.26462792]
[1765157014240,3.42904867,132.5,132.48,0.05433449]
[1765157018239,3.42904867,132.5,132.48,3.22433449]
[1765157018240,0.04904867,132.5,132.48,3.22433449]
[1765157018432,0.04904867,132.5,132.48,5.26462792]
[1765157020041,0.04904867,132.5,132.49,3.17]
[1765157024042,0.04904867,132.5,132.48,5.26462792]
[1765157024248,0.04904867,132.5,132.48,3.22433449]
[1765157025847,3.42904867,132.5,132.48,0.05433449]
[1765157028743,3.42904867,132.5,132.48,3.29433449]
[1765157029955,0.04904867,132.5,132.48,3.29433449]
[1765157030250,0.04904867,132.5,132.49,3.24]
[1765157032952,0.04904867,132.5,132.48,2.09462792]
[1765157032953,3.22904867,132.5,132.48,0.05433449]
[1765157033148,3.22904867,132.5,132.48,3.29433449]
[1765157033353,0.04904867,132.5,132.48,3.29433449]
[1765157035356,0.04904867,132.5,132.48,5.33462792]
[1765157035752,0.04904867,132.5,132.49,3.24]
[1765157041651,3.29904867,132.5,132.48,0.05433449]
[1765157042059,3.29904867,132.5,132.48,3.31433449]
[1765157044063,10.09104867,132.5,132.48,3.31433449]
[1765157044356,3.25,132.49,132.48,0.05433449]
[1765157044859,6.84104867,132.5,132.48,0.05433449]
[1765157045058,10.09104867,132.5,132.48,0.05433449]
[1765157047163,10.09104867,132.5,132.48,3.31433449]
[1765157047366,6.84104867,132.5,132.48,3.31433449]
[1765157047567,10.09104867,132.5,132.48,3.31433449]
[1765157052463,6.84104867,132.5,132.48,3.31433449]
[1765157053268,0.04904867,132.5,132.48,3.31433449]
[1765157053770,3.29904867,132.5,132.48,3.31433449]
[1765157057973,0.04904867,132.5,132.48,6.50176446]
[1765157058171,3.32,132.55,132.49,3.22]
[1765157058359,3.32,132.55,132.47,105.6727]
[1765157058360,5.75852189,132.54,132.51,3.22]
[1765157058670,3.32,132.54,132.51,3.22]
[1765157059372,3.32,132.54,132.51,3.27761085]
[1765157060070,3.32,132.54,132.51,0.05761085]
[1765157060269,3.32,132.52,132.51,0.05761085]
[1765157060471,9.07743726,132.52,132.51,0.05761085]
[1765157063176,3.32,132.52,132.51,0.05761085]
[1765157070172,10.1105,132.53,132.51,0.05761085]
[1765157070484,3.32,132.52,132.51,0.05761085]
[1765157073885,3.32,132.5,132.46,3.22]
[1765157075079,0.05239341,132.49,132.47,3.27585297]
[1765157079490,0.05239341,132.49,132.47,10.06915297]
[1765157079687,0.05239341,132.49,132.48,3.22]
[1765157080891,3.32,132.53,132.49,3.22]
[1765157081888,3.34390299,132.52,132.5,3.27706748]
[1765157082589,0.02390299,132.52,132.5,3.27706748]
[1765157082788,3.34390299,132.52,132.5,0.05706748]
[1765157083184,10.13510299,132.52,132.5,0.05706748]
[1765157083386,3.32,132.51,132.5,0.05706748]
[1765157083586,9.05687404,132.51,132.5,0.05706748]
[1765157087796,5.73687404,132.51,132.5,3.46706748]
[1765157087996,9.94510299,132.52,132.5,3.46706748]
[1765157088399,9.94510299,132.52,132.5,0.05706748]
[1765157088589,3.13,132.51,132.5,0.05706748]
[1765157091193,6.7921,132.5,132.46,6.59742997]
[1765157091399,3.13,132.49,132.47,3.41]
[1765157092303,3.1785405,132.49,132.47,3.46207503]
[1765157092689,0.0485405,132.49,132.47,3.46207503]
[1765157096705,0.0485405,132.49,132.47,5.50230228]
[1765157097199,0.0485405,132.49,132.48,3.41]
[1765157112410,9.8797,132.55,132.5,3.25]
[1765157112611,9.8797,132.55,132.52,3.25]
[1765157112612,3.09,132.54,132.52,3.25]
[1765157113314,3.12242997,132.54,132.52,3.29848349]
[1765157113798,3.12242997,132.54,132.52,0.04848349]
[1765157116014,3.12242997,132.54,132.52,3.29848349]
[1765157116918,0.03242997,132.54,132.52,3.29848349]
[1765157118718,3.29,132.58,132.54,3.2]
[1765157119614,3.29,132.57,132.55,5.29222238]
[1765157121013,10.0785,132.57,132.55,0.05199513]
[1765157121219,3.29,132.56,132.55,0.05199513]
[1765157122418,10.0785,132.57,132.55,0.05199513]
[1765157123218,3.29,132.56,132.55,0.05199513]
[1765157127513,3.29,132.54,132.49,5.24022725]
[1765157127710,3.29,132.54,132.5,3.2]
[1765157128316,10.08,132.54,132.51,5.24022725]
[1765157128515,10.08,132.54,132.51,5.28968848]
[1765157128516,10.13199513,132.54,132.51,5.28968848]
[1765157129322,3.34199513,132.54,132.52,3.2]
[1765157129621,0.05199513,132.54,132.52,3.2]
[1765157133123,0.05199513,132.54,132.53,5.24022725]
[1765157140733,10.0766,132.61,132.55,3.2]
[1765157140925,3.29,132.59,132.57,5.24022725]
[1765157141131,3.29,132.6,132.58,3.2]
[1765157141834,3.29,132.6,132.58,3.25651909]
[1765157142536,3.29,132.61,132.58,3.25651909]
[1765157142737,67.93,132.62,132.6,3.2]
[1765157142937,2.04022725,132.65,132.61,5.24022725]
[1765157142938,3.29,132.64,132.61,5.24022725]
[1765157143135,3.29,132.64,132.62,3.2]
[1765157143530,3.29,132.64,132.61,5.29720337]
[1765157144134,3.29,132.64,132.62,3.2]
[1765157145336,3.29,132.62,132.61,0.05697612]
[1765157147241,10.0755,132.63,132.61,0.05697612]
[1765157147546,3.29,132.62,132.61,0.05697612]
[1765157147844,3.11,132.64,132.61,5.25720337]
[1765157148345,3.11,132.67,132.63,2.04022725]
[1765157148528,9.8935,132.67,132.64,3.21486997]
[1765157148733,3.11,132.69,132.64,3.21486997]
[1765157149542,3.11,132.68,132.64,3.21486997]
[1765157150938,3.11,132.68,132.65,2.04022725]
[1765157151142,3.11,132.68,132.65,5.20022725]
[1765157154042,3.11,132.68,132.65,2.04022725]
[1765157154347,3.11,132.68,132.66,3.16]
[1765157155139,3.11,132.68,132.65,2.04022725]
[1765157155340,3.11,132.68,132.65,5.20022725]
[1765157155538,3.11,132.7,132.67,5.20022725]
[1765157155740,3.11,132.71,132.68,3.16]
[1765157156444,4.11373787,132.74,132.7,3.16]
[1765157156648,4.11373787,132.74,132.72,3.16]
[1765157157049,14.00353787,132.74,132.71,3.21132501]
[1765157157241,10.89353787,132.74,132.71,3.21132501]
[1765157157442,4.11373787,132.74,132.71,3.21132501]
[1765157157837,3.11,132.73,132.71,3.21132501]
[1765157158040,3.11,132.73,132.71,0.05132501]
[1765157158442,3.11,132.71,132.63,6.33627245]
[1765157158639,3.11,132.7,132.63,6.33627245]
[1765157159251,3.11,132.73,132.66,3.16]
[1765157159449,3.15929246,132.71,132.68,0.05758431]
[1765157159952,3.15929246,132.71,132.68,3.21758431]
[1765157161148,3.15929246,132.71,132.68,0.05758431]
[1765157163950,0.04929246,132.71,132.68,3.42758431]
[1765157164652,0.04929246,132.71,132.7,3.37]
[1765157165650,4.11373787,132.74,132.71,3.37]
[1765157165949,4.11373787,132.74,132.72,3.37]
[1765157166753,4.11373787,132.74,132.72,3.42119905]
[1765157168440,4.11373787,132.74,132.73,6.54627245]
[1765157170351,4.11373787,132.74,132.72,3.42119905]
[1765157170551,7.29373787,132.74,132.72,0.05119905]
[1765157171557,3.18,132.73,132.72,0.05119905]
[1765157174053,4.11373787,132.74,132.72,0.05119905]
[1765157174256,4.11373787,132.74,132.72,3.42119905]
[1765157179773,7.36373787,132.74,132.72,0.05119905]
[1765157180075,4.11373787,132.74,132.72,3.37119905]
[1765157180867,7.36373787,132.74,132.72,0.05119905]
[1765157181071,3.25,132.73,132.72,0.05119905]
[1765157182670,4.11373787,132.74,132.72,0.05119905]
[1765157182870,4.11373787,132.74,132.72,3.37119905]
[1765157183473,4.11373787,132.74,132.73,3.32]
[1765157185479,10.0262,132.81,132.74,3.32]
[1765157185680,3.25,132.81,132.77,3.32]
[1765157186980,3.25,132.81,132.76,6.83457469]
[1765157187277,3.25,132.81,132.76,10.15457469]
[1765157187475,3.25,132.81,132.77,3.32]
[1765157189976,3.25,132.84,132.78,3.32]
[1765157190171,3.25,132.84,132.8,3.37677251]
[1765157191572,3.25,132.87,132.8,3.37677251]
[1765157192480,3.25,132.87,132.81,10.0958]
[1765157192677,3.25,132.87,132.83,0.05520984]
[1765157193282,3.25,132.87,132.83,3.37520984]
[1765157193680,105.3309,132.91,132.83,10.14980984]
[1765157193681,3.25,132.9,132.83,10.14980984]
[1765157193986,3.25,132.9,132.85,3.37456043]
[1765157194688,3.25,132.9,132.85,0.05456043]
[1765157196578,3.25,132.89,132.85,0.05456043]
[1765157198272,3.25,132.88,132.85,0.05456043]
[1765157198475,3.25,132.91,132.85,3.37456043]
[1765157199178,3.25,132.9,132.85,0.05456043]
[1765157200278,3.25,132.92,132.85,3.37456043]
[1765157200691,3.25,132.92,132.86,10.0932]
[1765157200884,3.25,132.92,132.89,3.32]
[1765157201391,3.25,132.92,132.88,0.05185311]
[1765157204489,3.25,132.91,132.88,0.05185311]
[1765157205576,3.25,132.91,132.88,3.37185311]
[1765157205782,3.25,132.94,132.88,3.37185311]
[1765157206591,3.25,132.94,132.88,0.05185311]
[1765157207592,3.25,132.92,132.88,0.05185311]
[1765157207792,3.25,132.92,132.88,3.40185311]
[1765157209292,3.25,132.92,132.88,0.05185311]
[1765157209787,3.35,132.94,132.88,3.40185311]
[1765157209992,3.35,132.94,132.9,0.05240139]
[1765157210697,3.35,132.94,132.9,3.40240139]
[1765157211185,105.2673,132.99,132.9,10.17340139]
[1765157211186,3.35,132.96,132.9,10.17340139]
[1765157211386,3.35,132.96,132.92,0.05076885]
[1765157211781,3.35,132.94,132.92,0.05076885]
[1765157213185,3.35,132.96,132.92,3.40076885]
[1765157213381,3.35,132.99,132.93,6.7696]
[1765157213592,3.35,132.99,132.95,0.05582087]
[1765157214598,10.117,132.99,132.95,0.05582087]
[1765157214781,3.35,132.98,132.95,0.05582087]
[1765157216389,3.35,132.98,132.89,67.87]
[1765157216390,3.35,132.96,132.89,3.35]
[1765157217382,0.04792848,132.94,132.91,0.04950504]
[1765157217584,3.41,132.93,132.91,0.04950504]
[1765157217793,3.45792848,132.94,132.91,0.04950504]
[1765157217993,3.45792848,132.94,132.91,3.37950504]
[1765157218194,0.04792848,132.94,132.91,3.37950504]
[1765157218798,3.45792848,132.94,132.91,0.04950504]
[1765157219991,3.45792848,132.94,132.91,3.37950504]
[1765157220594,3.45792848,132.94,132.91,0.04950504]
[1765157220788,0.04792848,132.94,132.91,3.37950504]
[1765157222491,0.04792848,132.94,132.91,10.15030504]
[1765157222893,0.04792848,132.94,132.92,3.33]
[1765157223403,0.04792848,132.94,132.91,3.37950504]
[1765157223603,3.45792848,132.94,132.91,0.04950504]
[1765157226300,10.22752848,132.94,132.91,0.04950504]
[1765157226605,3.45792848,132.94,132.91,0.04950504]
[1765157226997,3.41,132.92,132.91,0.04950504]
[1765157227696,3.41,132.91,132.85,10.1038]
[1765157227896,3.41,132.91,132.85,3.33]
[1765157228199,3.41,132.91,132.83,71.2947]
[1765157228398,3.41,132.91,132.83,74.6247]
[1765157228611,3.41,132.87,132.86,0.057474]
[1765157230303,0.0561727,132.88,132.86,0.057474]
[1765157230508,0.0561727,132.88,132.86,3.387474]
[1765157230703,3.4661727,132.88,132.86,0.057474]
[1765157234303,3.41,132.87,132.86,0.057474]
[1765157234712,3.41,132.87,132.81,3.33]
[1765157234906,3.41,132.86,132.81,3.33]
[1765157235411,3.41,132.86,132.82,3.33]
[1765157235608,0.05068877,132.85,132.83,0.05263552]
[1765157236011,0.05068877,132.85,132.83,3.38263552]
[1765157238411,0.05068877,132.85,132.84,3.4]
[1765157238612,3.35,132.92,132.85,3.4]
[1765157239014,3.35,132.92,132.86,10.1732]
[1765157239513,3.35,132.92,132.87,10.1727]
[1765157239817,0.05489681,132.9,132.88,3.45043433]
[1765157242411,0.05489681,132.9,132.88,10.22263433]
[1765157242613,0.05489681,132.9,132.89,3.4]
[1765157242919,0.05489681,132.9,132.89,5.42731466]
[1765157243417,0.05489681,132.9,132.88,2.07774899]
[1765157244016,0.05489681,132.9,132.88,5.47774899]
[1765157246521,3.40489681,132.9,132.88,2.07774899]
[1765157247320,0.05489681,132.9,132.88,5.47774899]
[1765157248123,0.05489681,132.9,132.89,3.4]
[1765157251124,0.05489681,132.9,132.88,5.47774899]
[1765157252819,3.40489681,132.9,132.88,2.07774899]
[1765157253718,0.05489681,132.9,132.88,5.47774899]
[1765157254526,3.40489681,132.9,132.88,5.47774899]
[1765157255626,0.05489681,132.9,132.88,5.47774899]
[1765157255926,0.05489681,132.9,132.89,3.4]
[1765157256636,0.05489681,132.9,132.88,8.85014899]
[1765157256637,0.05489681,132.9,132.88,12.25014899]
[1765157257818,0.05489681,132.9,132.88,5.47774899]
[1765157258420,3.35,132.96,132.89,3.4]
[1765157258618,3.35,132.96,132.92,2.02731466]
[1765157259028,3.35,132.96,132.9,5.42731466]
[1765157259225,3.35,132.96,132.92,2.02731466]
[1765157259433,0.055956,132.95,132.93,0.04768312]
[1765157259821,0.055956,132.95,132.93,3.44768312]
[1765157260521,3.405956,132.95,132.93,3.44768312]
[1765157262530,3.405956,132.95,132.94,2.02731466]
[1765157262531,0.055956,132.95,132.94,2.02731466]
[1765157263719,0.055956,132.95,132.94,5.42731466]
[1765157265931,0.055956,132.95,132.94,3.4]
[1765157267134,3.405956,132.95,132.93,2.07499778]
[1765157267524,3.405956,132.95,132.93,0.04768312]
[1765157268434,3.16,132.94,132.93,0.04768312]
[1765157271730,3.16,132.92,132.88,67.77]
[1765157272235,3.16,132.92,132.89,3.27]
[1765157272835,3.21790552,132.92,132.89,3.32422105]
[1765157276637,0.05790552,132.92,132.89,5.35153571]
[1765157276939,0.05790552,132.92,132.9,3.27]
[1765157277943,0.05790552,132.92,132.91,5.38731466]
[1765157278437,3.16,132.95,132.92,3.36]
[1765157278642,3.16,132.95,132.93,2.02731466]
[1765157278847,3.22,132.96,132.93,5.38731466]
[1765157279543,3.26757452,132.96,132.93,5.44021819]
[1765157280644,3.26757452,132.96,132.93,3.41290353]
[1765157281344,0.04757452,132.96,132.93,3.41290353]
[1765157281648,0.04757452,132.96,132.95,3.36]
[1765157282945,3.22,133.02,132.95,3.36]
[1765157283246,3.22,133.09,133.02,3.36]
[1765157283440,8.870803,133.08,133.04,3.36]
[1765157283646,3.22,133.08,133.04,3.36]
[1765157284036,3.22,133.07,133.05,0.05654378]
[1765157284233,3.22,133.08,133.05,0.05654378]
[1765157284439,3.22,133.07,133.05,0.05654378]
[1765157284633,3.22,133.07,132.99,64.54]
[1765157284634,3.22,133.06,132.99,71.0664644]
[1765157284839,3.22,133.06,132.99,6.5264644]
[1765157285645,0.05654378,133.04,132.99,6.5264644]
[1765157285844,3.27654378,133.04,133.01,3.41256611]
[1765157286246,3.27654378,133.04,133.01,0.05256611]
[1765157286647,3.22,133.03,133.01,0.05256611]
[1765157288846,6.82114378,133.04,133.01,0.05256611]
[1765157289048,6.82114378,133.04,133.01,3.41256611]
[1765157289049,10.04114378,133.04,133.01,3.41256611]
[1765157289650,0.05654378,133.04,133.01,3.41256611]
[1765157291247,64.56,133.08,133.02,3.36]
[1765157291552,3.22,133.09,133.02,3.36]
[1765157291743,108.412,133.08,133.02,3.36]
[1765157291948,3.22,133.06,133.02,3.36]
[1765157292355,9.983,133.07,133.03,3.41585979]
[1765157293246,7.28856031,133.1,133.03,3.41585979]
[1765157294148,4.06856031,133.1,133.03,3.41585979]
[1765157294353,4.06856031,133.1,133.05,3.36]
[1765157294665,4.06856031,133.1,133.07,3.36]
[1765157295157,7.28856031,133.1,133.07,3.36]
[1765157295342,3.22,133.09,133.06,0.05429501]
[1765157295658,3.22,133.09,133.06,3.41429501]
[1765157295855,4.06856031,133.1,133.06,3.41429501]
[1765157296053,7.28856031,133.1,133.06,3.41429501]
[1765157296649,4.06856031,133.1,133.08,3.36]
[1765157298362,3.22,133.16,133.08,3.36]
[1765157298550,3.4,133.19,133.12,0.76]
[1765157299054,3.4,133.19,133.14,0.05314797]
[1765157299357,108.5144,133.18,133.14,0.05314797]
[1765157299550,105.0846,133.22,133.14,0.81314797]
[1765157299753,3.4,133.21,133.17,0.05244643]
[1765157300256,7.03999642,133.28,133.21,111.8407]
[1765157300449,7.03999642,133.28,133.2,113.48240646]
[1765157300450,3.4,133.28,133.2,113.48240646]
[1765157300646,3.4,133.28,133.17,113.50610646]
[1765157300855,3.4,133.28,133.23,0.05741115]
[1765157301066,3.4,133.27,133.23,0.05741115]
[1765157301254,108.4454,133.27,133.23,0.05741115]
[1765157301465,108.4454,133.27,133.18,64.58]
[1765157301466,3.4,133.25,133.14,120.28910646]
[1765157301655,3.4,133.24,133.11,113.55430646]
[1765157301857,3.4,133.22,133.11,105.1633]
[1765157302059,3.4,133.21,133.12,64.58]
[1765157302460,3.45461565,133.18,133.15,0.0532391]
[1765157307063,3.4,133.17,133.08,64.58]
[1765157307259,3.4,133.15,133.06,111.9662]
[1765157307457,3.4,133.15,133.06,6.7629]
[1765157307662,3.4,133.12,133.03,111.9924]
[1765157307863,3.4,133.12,133.04,105.2203]
[1765157308162,0.05119228,133.09,133.07,0.05533673]
[1765157308357,3.4,133.17,133.07,217.21073673]
[1765157308558,108.5221,133.17,133.07,105.1944]
[1765157308865,3.4,133.15,133.06,6.7633]
[1765157309562,0.05465846,133.12,133.09,0.05027702]
[1765157311568,0.05465846,133.12,133.1,6.7612]
[1765157312161,0.05465846,133.12,133.1,111.9361]
[1765157312562,0.05465846,133.12,133.1,113.4361]
[1765157313062,10.1553,133.22,133.13,105.1513]
[1765157313363,3.4,133.22,133.15,105.1316]
[1765157313563,3.4,133.22,133.16,6.7579]
[1765157314167,3.4,133.29,133.21,111.8434]
[1765157314355,3.4,133.29,133.21,6.7553]
[1765157314561,3.4,133.29,133.24,0.05554603]
[1765157315861,3.4,133.33,133.24,105.11864603]
[1765157316064,3.4,133.33,133.27,0.04986845]
[1765157316367,3.4,133.31,133.27,0.04986845]
[1765157318470,3.4,133.34,133.27,0.04986845]
[1765157318870,3.4,133.34,133.27,111.84306845]
[1765157319171,3.4,133.34,133.27,0.04986845]
[1765157319772,3.4,133.34,133.27,111.84276845]
[1765157319968,3.4,133.34,133.27,6.80216845]
[1765157320477,3.4,133.34,133.28,111.7846]
[1765157320667,3.4,133.37,133.3,0.05666467]
[1765157321073,3.4,133.35,133.3,0.05666467]
[1765157321373,3.4,133.34,133.3,0.05666467]
[1765157321868,10.1495,133.34,133.3,0.05666467]
[1765157322073,3.4,133.33,133.3,0.05666467]
[1765157323767,3.4,133.37,133.3,0.05666467]
[1765157325170,10.1479,133.37,133.3,0.05666467]
[1765157325366,3.4,133.37,133.3,111.82456467]